[Event "CZE-ch U12 Open 2023"]
[Site "Teplice"]
[Date "2023.03.15"]
[Round "6.1"]
[White "Kroulik, Vaclav"]
[Black "Mydlar, Matej"]
[Result "1-0"]
[ECO "E12"]
[WhiteElo "1772"]
[BlackElo "1586"]
[Annotator "NA RC COMBH"]
[PlyCount "47"]
[EventDate "2023.03.09"]
[EventType "swiss"]
[EventCountry "CZE"]
[SourceTitle "playchess.com"]
[Source "ChessBase"]
[SourceQuality "1"]
[TimeControl "40/5400+30:1800+30"]

1. d4 {[%emt 0:00:03]} Nf6 {[%emt 0:00:46]} 2. c4 {[%emt 0:00:11]} e6 {[%emt 0:00:05]} 3. Nf3 {[%emt 0:00:44]} b6 {[%emt 0:00:06]} 4. a3 {[%emt 0:00:13]} Bb7 {[%emt 0:00:06]} 5. Nc3 {[%emt 0:00:20]} d5 {[%emt 0:00:13]} 6. cxd5 {[%emt 0:00:45]} exd5 {[%emt 0:00:31]} 7. Bf4 {[%emt 0:00:32]} Bd6 {[%emt 0:01:09]} 8. Bg3 {[%emt 0:01:32]} O-O {[%emt 0:02:26]} 9. Rc1 {[%emt 0:00:49]} a6 {[%emt 0:01:10]} 10. e3 {[%emt 0:01:03]} Ne4 {[%emt 0:06:48]} 11. Nxe4 {[%emt 0:02:35]} dxe4 {[%emt 0:00:44]} 12. Nd2 {[%emt 0:00:53]} f5 {[%emt 0:10:10]} 13. Bxd6 {[%emt 0:01:24]} Qxd6 {[%emt 0:01:08]} 14. Nc4 {[%emt 0:00:57]} Qe7 {[%emt 0:03:02]} 15. Ne5 {[%emt 0:03:29]} Rf6 {[%emt 0:13:42]} 16. Bc4+ {[%emt 0:04:35]} Kh8 {[%emt 0:00:20]} 17. Qh5 {[%emt 0:04:21]} g6 {[%emt 0:00:38]} 18. Qh4 {[%emt 0:02:09]} Kg7 {[%emt 0:01:01]} 19. g4 {[%emt 0:04:46]} Nd7 {[%emt 0:07:25]} 20. g5 {[%emt 0:02:18]} Re6 {[%emt 0:02:36]} 21. Nxd7 {[%emt 0:02:54]} Rc6 {[%emt 0:02:35]} 22. Qh6+ {[%emt 0:01:00]} Kh8 {[%emt 0:00:07]} 23. Ne5 {[%emt 0:00:09]} b5 {[%emt 0:01:21]} 24. Nxc6 {[%emt 0:02:04]} 1-0

[Event "CZE-ch U12 Open 2023"]
[Site "Teplice"]
[Date "2023.03.15"]
[Round "6.2"]
[White "Mik, Tomas"]
[Black "Sochor, Antonin"]
[Result "0-1"]
[ECO "B58"]
[WhiteElo "1911"]
[BlackElo "1574"]
[Annotator "TA"]
[PlyCount "36"]
[EventDate "2023.03.09"]
[EventType "swiss"]
[EventCountry "CZE"]
[SourceTitle "playchess.com"]
[Source "ChessBase"]
[SourceQuality "1"]
[TimeControl "40/5400+30:1800+30"]

{[%evp 18,36,28,17,18,-54,-56,-66,-63,-138,-140,-187,-195,-414,-416,-540,-520,-633,-604,-701,-688]} 1. e4 {[%emt 0:00:02]} c5 {[%emt 0:00:07]} 2. Nf3 {[%emt 0:00:09]} d6 {[%emt 0:00:13]} 3. d4 {[%emt 0:00:09]} cxd4 {[%emt 0:00:13]} 4. Nxd4 {[%emt 0:00:11]} Nf6 {[%emt 0:00:12]} 5. Nc3 {[%emt 0:00:14]} Nc6 {[%emt 0:00:08]} 6. Be2 {[%emt 0:00:52]} a6 {[%emt 0:00:44]} 7. O-O {[%emt 0:00:15]} g6 {[%emt 0:00:51]} 8. Be3 {[%emt 0:00:27]} Bg7 {[%emt 0:00:22]} 9. f4 {[%emt 0:00:37]} O-O {[%emt 0:02:09]} 10. Kh1 {[%emt 0:01:29]} Qc7 {[%emt 0:01:24] B73: Sicilian Dragon: Classical System without 9 Nb3.} 11. Qe1 {[%emt 0:02:21] [#]} (11. Nxc6 $11 bxc6 12. f5) 11... Nxe4 $146 {[%emt 0:07:19]} ({Predecessor:} 11... Bg4 12. Nf3 b5 13. Bd3 Rac8 14. Ne2 d5 15. e5 Ne4 16. a3 f6 17. h3 Bd7 18. exf6 Bxf6 {1-0 Gaggiottini,M (2095)-Barni,N ITA m1 Italy 1995}) 12. Nd5 $1 {[%emt 0:05:54]} Qd8 {[%emt 0:04:40] Black is slightly better.} 13. Nxc6 {[%emt 0:06:40]} (13. Bf3 $15) 13... bxc6 $17 {[%emt 0:01:42][%cal Bb7c6,Bc6c5][%mdl 32]} 14. Bb6 {[%emt 0:00:28]} (14. Nb6 $17 Rb8 15. Bd3) 14... Qd7 $19 {[%emt 0:00:55]} 15. Bg4 $2 {[%emt 0:06:37] [#]} (15. Nc3 Nxc3 16. bxc3) 15... f5 {[%emt 0:03:02][%cal Bf7f5,Bf5g4][%mdl 32]} ({Weaker is} 15... Qxg4 16. Nxe7+ Kh8 17. Qxe4 $15) 16. Nb4 {[%emt 0:08:08]} Qb7 {[%emt 0:01:32] Black is clearly winning.} 17. Bg1 {[%emt 0:01:07]} c5 {[%emt 0:00:33]} 18. Nd3 {[%emt 0:00:27]} fxg4 {[%emt 0:00:13] White did not feel at home in the position after the opening.   Weighted Error Value: White=0.87/Black=0.00 (flawless)} 0-1

[Event "CZE-ch U12 Open 2023"]
[Site "Teplice"]
[Date "2023.03.15"]
[Round "6.3"]
[White "Chernyy, Andrey"]
[Black "Policar, Martin"]
[Result "1-0"]
[ECO "B12"]
[WhiteElo "1605"]
[BlackElo "1552"]
[Annotator "NA RC COMBH"]
[PlyCount "105"]
[EventDate "2023.03.09"]
[EventType "swiss"]
[EventCountry "CZE"]
[SourceTitle "playchess.com"]
[Source "ChessBase"]
[SourceQuality "1"]
[TimeControl "40/5400+30:1800+30"]

1. e4 {[%emt 0:00:03]} c6 {[%emt 0:00:06]} 2. d4 {[%emt 0:00:06]} d5 {[%emt 0:00:04]} 3. e5 {[%emt 0:00:05]} Bf5 {[%emt 0:00:32]} 4. h4 {[%emt 0:00:10]} h6 {[%emt 0:00:31]} 5. g4 {[%emt 0:00:08]} Be4 {[%emt 0:00:20]} 6. f3 {[%emt 0:00:07]} Bg6 {[%emt 0:00:13]} 7. h5 {[%emt 0:02:11]} Bh7 {[%emt 0:00:06]} 8. e6 {[%emt 0:00:06]} f5 {[%emt 0:02:55]} 9. Bf4 {[%emt 0:10:51]} Nf6 {[%emt 0:02:29]} 10. gxf5 {[%emt 0:16:03]} Bxf5 {[%emt 0:00:35]} 11. Bh3 {[%emt 0:00:54]} Nxh5 {[%emt 0:04:10]} 12. Bxb8 {[%emt 0:08:48]} Qxb8 {[%emt 0:04:36]} 13. Bxf5 {[%emt 0:01:46]} Qg3+ {[%emt 0:02:31]} 14. Kf1 {[%emt 0:01:00]} Qg5 {[%emt 0:01:24]} 15. Rxh5 {[%emt 0:12:06]} Qxh5 {[%emt 0:00:33]} 16. Qd3 {[%emt 0:00:41]} O-O-O {[%emt 0:02:24]} 17. Nc3 {[%emt 0:05:15]} g5 {[%emt 0:01:33]} 18. b4 {[%emt 0:01:26]} Kc7 {[%emt 0:03:28]} 19. b5 {[%emt 0:02:12]} Bg7 {[%emt 0:00:15]} 20. bxc6 {[%emt 0:02:06]} bxc6 {[%emt 0:00:11]} 21. Na4 {[%emt 0:05:15]} Rhf8 {[%emt 0:03:31]} 22. Nc5 {[%emt 0:05:37]} Bxd4 {[%emt 0:02:25]} 23. Qxd4 {[%emt 0:01:18]} Rxf5 {[%emt 0:01:17]} 24. Na6+ {[%emt 0:00:36]} Kd6 {[%emt 0:00:14]} 25. Re1 {[%emt 0:10:53]} Rxf3+ {[%emt 0:04:06]} 26. Kg2 {[%emt 0:00:49]} Rg3+ {[%emt 0:04:56]} 27. Kxg3 {[%emt 0:00:16]} Qh4+ {[%emt 0:00:07]} 28. Qxh4 {[%emt 0:00:10]} gxh4+ {[%emt 0:00:03]} 29. Kxh4 {[%emt 0:00:15]} c5 {[%emt 0:00:34]} 30. Nf3 {[%emt 0:02:21]} Rf8 {[%emt 0:00:40]} 31. Kg3 {[%emt 0:01:58]} Kc6 {[%emt 0:00:21]} 32. Ne5+ {[%emt 0:01:19]} Kd6 {[%emt 0:01:39]} 33. Nd7 {[%emt 0:00:32]} Rc8 {[%emt 0:00:54]} 34. Naxc5 {[%emt 0:00:37]} Rg8+ {[%emt 0:00:40]} 35. Kf3 {[%emt 0:00:36]} h5 {[%emt 0:00:18]} 36. Rh1 {[%emt 0:00:19]} h4 {[%emt 0:00:30]} 37. Rxh4 {[%emt 0:00:44]} Rg1 {[%emt 0:00:02]} 38. c4 {[%emt 0:01:22]} Rd1 {[%emt 0:00:24]} 39. cxd5 {[%emt 0:00:26]} Ra1 {[%emt 0:00:27]} 40. Ra4 {[%emt 0:00:28]} a5 {[%emt 0:00:21]} 41. Rxa5 {[%emt 0:30:17]} Rf1+ {[%emt 0:30:24]} 42. Ke2 {[%emt 0:00:16]} Rf5 {[%emt 0:00:31]} 43. a4 {[%emt 0:00:36]} Rh5 {[%emt 0:00:34]} 44. Ra7 {[%emt 0:01:31]} Rh2+ {[%emt 0:00:13]} 45. Kf3 {[%emt 0:00:08]} Rh3+ {[%emt 0:00:15]} 46. Kg2 {[%emt 0:00:16]} Ra3 {[%emt 0:00:11]} 47. a5 {[%emt 0:00:45]} Ra2+ {[%emt 0:00:17]} 48. Kf3 {[%emt 0:00:13]} Ra3+ {[%emt 0:00:05]} 49. Ke2 {[%emt 0:00:40]} Ra1 {[%emt 0:00:28]} 50. a6 {[%emt 0:00:18]} Ra3 {[%emt 0:00:18]} 51. Rb7 {[%emt 0:00:28]} Ra1 {[%emt 0:00:12]} 52. a7 {[%emt 0:00:13]} Ra3 {[%emt 0:00:03]} 53. Nb6 {[%emt 0:00:54]} 1-0

[Event "CZE-ch U12 Open 2023"]
[Site "Teplice"]
[Date "2023.03.15"]
[Round "6.4"]
[White "Boff, Ondrej"]
[Black "Mikulka, Martin Michael"]
[Result "0-1"]
[ECO "C01"]
[WhiteElo "1561"]
[BlackElo "1786"]
[Annotator "NA RC COMBH"]
[PlyCount "84"]
[EventDate "2023.03.09"]
[EventType "swiss"]
[EventCountry "CZE"]
[SourceTitle "playchess.com"]
[Source "ChessBase"]
[SourceQuality "1"]
[TimeControl "40/5400+30:1800+30"]

1. e4 {[%emt 0:00:05]} e6 {[%emt 0:00:12]} 2. d4 {[%emt 0:00:10]} d5 {[%emt 0:00:04]} 3. exd5 {[%emt 0:00:15]} exd5 {[%emt 0:00:08]} 4. Bd3 {[%emt 0:00:14]} Nf6 {[%emt 0:00:10]} 5. Ne2 {[%emt 0:00:32]} Bd6 {[%emt 0:00:40]} 6. Bf4 {[%emt 0:00:14]} O-O {[%emt 0:01:38]} 7. O-O {[%emt 0:01:14]} Bg4 {[%emt 0:00:45]} 8. f3 {[%emt 0:01:59]} Bh5 {[%emt 0:00:30]} 9. Bxd6 {[%emt 0:06:54]} Qxd6 {[%emt 0:00:45]} 10. Ng3 {[%emt 0:04:46]} Bg6 {[%emt 0:00:56]} 11. Nf5 {[%emt 0:08:07]} Bxf5 {[%emt 0:04:17]} 12. Bxf5 {[%emt 0:00:15]} Nbd7 {[%emt 0:05:23]} 13. Nd2 {[%emt 0:10:50]} Qf4 {[%emt 0:05:39]} 14. Bxd7 {[%emt 0:09:23]} Qxd4+ {[%emt 0:02:20]} 15. Rf2 {[%emt 0:00:36]} Nxd7 {[%emt 0:00:25]} 16. c3 {[%emt 0:02:29]} Qb6 {[%emt 0:02:01]} 17. Nb3 {[%emt 0:01:45]} Nf6 {[%emt 0:01:39]} 18. Qd2 {[%emt 0:07:35]} Rfe8 {[%emt 0:02:01]} 19. Nd4 {[%emt 0:02:17]} Re5 {[%emt 0:06:22]} 20. Re1 {[%emt 0:02:54]} Rae8 {[%emt 0:00:48]} 21. Rfe2 {[%emt 0:01:24]} Rxe2 {[%emt 0:02:16]} 22. Rxe2 {[%emt 0:00:28]} Rxe2 {[%emt 0:00:21]} 23. Qxe2 {[%emt 0:00:08]} g6 {[%emt 0:05:26]} 24. Kf1 {[%emt 0:05:21]} c5 {[%emt 0:01:21]} 25. Nb3 {[%emt 0:00:16]} Qd6 {[%emt 0:02:06]} 26. g4 {[%emt 0:06:42]} b6 {[%emt 0:03:26]} 27. Nd2 {[%emt 0:10:16]} Qf4 {[%emt 0:03:24]} 28. Kg2 {[%emt 0:01:15]} h5 {[%emt 0:01:26]} 29. h3 {[%emt 0:01:01]} Qg5 {[%emt 0:02:43]} 30. Nf1 {[%emt 0:02:09]} hxg4 {[%emt 0:02:53]} 31. hxg4 {[%emt 0:00:29]} Nh5 {[%emt 0:01:47]} 32. Qe8+ {[%emt 0:00:36]} Kg7 {[%emt 0:00:13]} 33. Ne3 {[%emt 0:01:15]} d4 {[%emt 0:02:56]} 34. Nc4 {[%emt 0:02:46]} Nf4+ {[%emt 0:01:08]} 35. Kg3 {[%emt 0:01:28]} Ne6 {[%emt 0:01:41]} 36. Qd7 {[%emt 0:01:43]} Qf4+ {[%emt 0:01:02]} 37. Kg2 {[%emt 0:00:37]} dxc3 {[%emt 0:01:28]} 38. Qd3 {[%emt 0:00:55]} cxb2 {[%emt 0:04:03]} 39. Nxb2 {[%emt 0:00:16]} Qc1 {[%emt 0:00:25]} 40. Qb3 {[%emt 0:01:37]} Qd2+ {[%emt 0:03:13]} 41. Kg3 {[%emt 0:30:40]} Qe1+ {[%emt 0:30:14]} 42. Kg2 {[%emt 0:00:51]} Nf4+ {[%emt 0:00:10]} 0-1

[Event "CZE-ch U12 Open 2023"]
[Site "Teplice"]
[Date "2023.03.15"]
[Round "6.5"]
[White "Rendl, Lubos"]
[Black "Sboev, Kirill"]
[Result "1-0"]
[ECO "D37"]
[WhiteElo "1477"]
[BlackElo "1506"]
[Annotator "NA RC COMBH"]
[PlyCount "113"]
[EventDate "2023.03.09"]
[EventType "swiss"]
[EventCountry "CZE"]
[SourceTitle "playchess.com"]
[Source "ChessBase"]
[SourceQuality "1"]
[TimeControl "40/5400+30:1800+30"]

1. Nf3 {[%emt 0:00:06]} d5 {[%emt 0:00:10]} 2. c4 {[%emt 0:00:07]} e6 {[%emt 0:00:17]} 3. d4 {[%emt 0:00:25]} Nf6 {[%emt 0:00:35]} 4. Nc3 {[%emt 0:00:16]} Be7 {[%emt 0:01:00]} 5. Bf4 {[%emt 0:00:18]} O-O {[%emt 0:00:37]} 6. e3 {[%emt 0:01:04]} b6 {[%emt 0:01:09]} 7. h3 {[%emt 0:05:26]} Bb7 {[%emt 0:01:40]} 8. Rc1 {[%emt 0:03:19]} Nbd7 {[%emt 0:02:17]} 9. cxd5 {[%emt 0:03:10]} exd5 {[%emt 0:00:23]} 10. Bd3 {[%emt 0:02:43]} Rc8 {[%emt 0:01:47]} 11. O-O {[%emt 0:03:23]} c5 {[%emt 0:05:27]} 12. Qd2 {[%emt 0:04:42]} Ne4 {[%emt 0:04:36]} 13. Bxe4 {[%emt 0:06:55]} dxe4 {[%emt 0:00:07]} 14. Ne5 {[%emt 0:02:05]} Nxe5 {[%emt 0:00:22]} 15. Bxe5 {[%emt 0:00:30]} Bf6 {[%emt 0:01:24]} 16. Bxf6 {[%emt 0:03:52]} Qxf6 {[%emt 0:00:23]} 17. dxc5 {[%emt 0:05:37]} Rxc5 {[%emt 0:05:16]} 18. Ne2 {[%emt 0:01:45]} Rd8 {[%emt 0:03:11]} 19. Nd4 {[%emt 0:01:37]} Qd6 {[%emt 0:02:07]} 20. Rfd1 {[%emt 0:02:41]} h6 {[%emt 0:02:25]} 21. Rxc5 {[%emt 0:02:19]} bxc5 {[%emt 0:02:01]} 22. Nb3 {[%emt 0:01:06]} Qxd2 {[%emt 0:00:05]} 23. Rxd2 {[%emt 0:00:07]} Rxd2 {[%emt 0:00:09]} 24. Nxd2 {[%emt 0:00:04]} Bd5 {[%emt 0:00:48]} 25. Kh2 {[%emt 0:01:24]} f5 {[%emt 0:01:17]} 26. a3 {[%emt 0:03:20]} a5 {[%emt 0:00:48]} 27. f4 {[%emt 0:01:47]} Kf7 {[%emt 0:02:00]} 28. g4 {[%emt 0:02:08]} fxg4 {[%emt 0:01:34]} 29. hxg4 {[%emt 0:01:32]} g6 {[%emt 0:02:42]} 30. Kg3 {[%emt 0:00:44]} Ke6 {[%emt 0:00:58]} 31. Kh4 Kf7 {[%emt 0:02:44]} 32. Kg3 {[%emt 0:02:49]} Ke7 {[%emt 0:01:19]} 33. Kh3 {[%emt 0:01:23]} Kd6 {[%emt 0:02:37]} 34. Kg3 {[%emt 0:02:16]} g5 {[%emt 0:04:53]} 35. Nb1 {[%emt 0:05:01]} Bc6 {[%emt 0:04:59]} 36. Nc3 {[%emt 0:00:25]} Ke6 {[%emt 0:01:45]} 37. Kf2 {[%emt 0:05:08]} Kf6 {[%emt 0:01:41]} 38. Ke2 {[%emt 0:01:14]} Ke6 {[%emt 0:03:53]} 39. Kd2 {[%emt 0:02:56]} Kd6 {[%emt 0:01:40]} 40. Kc2 {[%emt 0:03:14]} c4 {[%emt 0:02:48]} 41. Ne2 {[%emt 0:32:27]} Bd7 {[%emt 0:32:01]} 42. Ng3 {[%emt 0:01:35]} Kd5 {[%emt 0:01:28]} 43. f5 {[%emt 0:00:27]} Be8 {[%emt 0:02:28]} 44. b3 {[%emt 0:03:44]} cxb3+ {[%emt 0:03:06]} 45. Kxb3 {[%emt 0:00:07]} Bb5 {[%emt 0:02:07]} 46. f6 {[%emt 0:02:16]} Be8 {[%emt 0:03:48]} 47. f7 {[%emt 0:03:27]} Bxf7 {[%emt 0:00:14]} 48. Ka4 {[%emt 0:00:09]} Bg6 {[%emt 0:01:59]} 49. Kxa5 {[%emt 0:00:53]} Kc5 {[%emt 0:00:28]} 50. a4 {[%emt 0:00:14]} Bh7 {[%emt 0:01:04]} 51. Nh5 {[%emt 0:01:09]} Kc6 {[%emt 0:14:58]} 52. Kb4 {[%emt 0:01:20]} Bg6 {[%emt 0:02:06]} 53. Nf6 {[%emt 0:00:11]} h5 {[%emt 0:02:52]} 54. gxh5 {[%emt 0:00:14]} Bf5 {[%emt 0:02:14]} 55. h6 {[%emt 0:00:13]} Bh7 {[%emt 0:00:29]} 56. Nxh7 {[%emt 0:00:27]} g4 {[%emt 0:00:06]} 57. Ng5 {[%emt 0:00:11]} 1-0

[Event "CZE-ch U12 Open 2023"]
[Site "Teplice"]
[Date "2023.03.15"]
[Round "6.6"]
[White "Sochor, Vaclav"]
[Black "Hladky, Mikulas"]
[Result "1/2-1/2"]
[ECO "B21"]
[WhiteElo "1503"]
[BlackElo "1476"]
[Annotator "NA RC COMBH"]
[PlyCount "67"]
[EventDate "2023.03.09"]
[EventType "swiss"]
[EventCountry "CZE"]
[SourceTitle "playchess.com"]
[Source "ChessBase"]
[SourceQuality "1"]
[TimeControl "40/5400+30:1800+30"]

1. e4 {[%emt 0:00:14]} c5 {[%emt 0:00:18]} 2. d4 {[%emt 0:00:14]} cxd4 {[%emt 0:00:11]} 3. c3 {[%emt 0:00:34]} dxc3 {[%emt 0:00:35]} 4. Nxc3 {[%emt 0:00:35]} Nc6 {[%emt 0:00:23]} 5. Bc4 {[%emt 0:01:07]} d6 {[%emt 0:00:32]} 6. Nf3 {[%emt 0:01:17]} a6 {[%emt 0:00:49]} 7. O-O {[%emt 0:07:00]} Nf6 {[%emt 0:00:36]} 8. Qe2 {[%emt 0:01:32]} Bg4 {[%emt 0:01:23]} 9. Rd1 {[%emt 0:01:12]} e6 {[%emt 0:00:31]} 10. Bf4 {[%emt 0:06:34]} Qb8 {[%emt 0:00:48]} 11. h3 {[%emt 0:02:21]} Bxf3 {[%emt 0:00:09]} 12. Qxf3 {[%emt 0:00:09]} Be7 {[%emt 0:15:35]} 13. Rd2 {[%emt 0:09:45]} O-O {[%emt 0:00:51]} 14. Rad1 {[%emt 0:00:52]} Ne5 {[%emt 0:00:17]} 15. Bxe5 {[%emt 0:00:54]} dxe5 {[%emt 0:00:28]} 16. g4 {[%emt 0:07:38]} b5 {[%emt 0:01:03]} 17. Bb3 {[%emt 0:00:38]} b4 {[%emt 0:02:02]} 18. Ne2 {[%emt 0:00:59]} h6 {[%emt 0:03:25]} 19. h4 {[%emt 0:04:10]} Nh7 {[%emt 0:05:41]} 20. Qg3 {[%emt 0:14:20]} Rd8 {[%emt 0:02:17]} 21. f3 {[%emt 0:06:30]} Qb6+ {[%emt 0:02:38]} 22. Kf1 {[%emt 0:02:10]} Qe3 {[%emt 0:03:03]} 23. Rxd8+ {[%emt 0:00:55]} Rxd8 {[%emt 0:00:30]} 24. Rxd8+ {[%emt 0:00:36]} Bxd8 {[%emt 0:00:12]} 25. Bc4 {[%emt 0:01:09]} a5 {[%emt 0:00:57]} 26. Kg2 {[%emt 0:01:46]} Qc5 {[%emt 0:08:10]} 27. b3 {[%emt 0:00:36]} Qd6 {[%emt 0:02:31]} 28. Qe1 {[%emt 0:03:29]} Nf8 {[%emt 0:02:16]} 29. h5 {[%emt 0:01:03]} Nd7 {[%emt 0:00:40]} 30. Nc1 {[%emt 0:00:51]} Nb6 {[%emt 0:02:07]} 31. Bf1 {[%emt 0:03:36]} Bg5 {[%emt 0:03:04]} 32. Nd3 {[%emt 0:01:08]} Nd7 {[%emt 0:04:13]} 33. Qb1 {[%emt 0:01:05]} Nc5 {[%emt 0:01:09]} 34. Nxc5 1/2-1/2

[Event "CZE-ch U12 Open 2023"]
[Site "Teplice"]
[Date "2023.03.15"]
[Round "6.7"]
[White "Migalko, Dmitriy"]
[Black "Bara, Jan"]
[Result "0-1"]
[ECO "B50"]
[WhiteElo "1581"]
[BlackElo "1712"]
[Annotator "NA RC COMBH"]
[PlyCount "94"]
[EventDate "2023.03.09"]
[EventType "swiss"]
[EventCountry "CZE"]
[SourceTitle "playchess.com"]
[Source "ChessBase"]
[SourceQuality "1"]
[TimeControl "40/5400+30:1800+30"]

1. e4 {[%emt 0:00:02]} c5 {[%emt 0:00:03]} 2. Nf3 {[%emt 0:00:13]} d6 {[%emt 0:00:10]} 3. Nc3 {[%emt 0:00:22]} g6 {[%emt 0:00:25]} 4. d4 {[%emt 0:01:02]} cxd4 {[%emt 0:00:13]} 5. Qxd4 {[%emt 0:00:42]} Nf6 {[%emt 0:01:53]} 6. Bg5 {[%emt 0:22:28]} Bg7 {[%emt 0:08:10]} 7. O-O-O {[%emt 0:01:18]} O-O {[%emt 0:01:51]} 8. e5 {[%emt 0:02:55]} Ng4 {[%emt 0:13:38]} 9. Qd2 {[%emt 0:17:06]} Nxe5 {[%emt 0:08:45]} 10. Nxe5 {[%emt 0:00:35]} Bxe5 {[%emt 0:00:34]} 11. Nd5 {[%emt 0:01:01]} Nc6 {[%emt 0:03:44]} 12. Bb5 {[%emt 0:01:30]} Re8 {[%emt 0:01:28]} 13. f4 {[%emt 0:04:28]} Bg7 {[%emt 0:01:30]} 14. Bxc6 {[%emt 0:07:10]} bxc6 {[%emt 0:00:02]} 15. Nxe7+ {[%emt 0:00:27]} Rxe7 {[%emt 0:01:41]} 16. Bxe7 {[%emt 0:00:13]} Qxe7 {[%emt 0:00:01]} 17. Qxd6 {[%emt 0:00:28]} Qxd6 {[%emt 0:03:30]} 18. Rxd6 {[%emt 0:00:07]} Be6 {[%emt 0:00:34]} 19. Rhd1 {[%emt 0:03:36]} Bd5 {[%emt 0:01:13]} 20. g3 {[%emt 0:00:58]} a5 {[%emt 0:03:53]} 21. b3 {[%emt 0:03:19]} a4 {[%emt 0:02:57]} 22. c4 {[%emt 0:00:09]} axb3 {[%emt 0:03:36]} 23. axb3 {[%emt 0:01:32]} Ra1+ {[%emt 0:01:57]} 24. Kd2 {[%emt 0:01:55]} Rxd1+ {[%emt 0:00:11]} 25. Kxd1 {[%emt 0:00:08]} Bf3+ {[%emt 0:00:07]} 26. Kd2 {[%emt 0:00:51]} Bf8 {[%emt 0:01:48]} 27. Rd8 {[%emt 0:03:59]} Kg7 {[%emt 0:00:13]} 28. Ke3 {[%emt 0:00:15]} Bg4 {[%emt 0:01:01]} 29. Kd4 {[%emt 0:00:47]} Bb4 {[%emt 0:06:26]} 30. Rb8 {[%emt 0:03:05]} c5+ {[%emt 0:03:13]} 31. Kd5 {[%emt 0:01:03]} Bd1 {[%emt 0:00:17]} 32. h4 {[%emt 0:01:41]} Bxb3 {[%emt 0:00:39]} 33. g4 {[%emt 0:00:13]} Bd1 {[%emt 0:00:09]} 34. g5 {[%emt 0:00:07]} Bg4 {[%emt 0:01:30]} 35. Kd6 {[%emt 0:00:26]} Be6 {[%emt 0:00:55]} 36. h5 {[%emt 0:02:26]} gxh5 {[%emt 0:00:04]} 37. Ke5 {[%emt 0:00:26]} Bc3+ {[%emt 0:00:31]} 38. Ke4 {[%emt 0:00:09]} f5+ {[%emt 0:06:13]} 39. gxf6+ {[%emt 0:00:15]} Bxf6 {[%emt 0:00:36]} 40. Rb7+ {[%emt 0:02:49]} Kg6 {[%emt 0:01:43]} 41. Rc7 {[%emt 0:30:12]} Bf5+ {[%emt 0:31:26]} 42. Kf3 {[%emt 0:00:21]} Bd4 {[%emt 0:02:17]} 43. Rc6+ {[%emt 0:00:12]} Kf7 {[%emt 0:00:02]} 44. Rc7+ {[%emt 0:00:29]} Ke6 {[%emt 0:01:06]} 45. Rc6+ {[%emt 0:00:49]} Kd7 {[%emt 0:00:22]} 46. Rh6 {[%emt 0:00:11]} Bg6 {[%emt 0:01:00]} 47. f5 {[%emt 0:00:23]} Bg7 {[%emt 0:00:00]} 0-1

[Event "CZE-ch U12 Open 2023"]
[Site "Teplice"]
[Date "2023.03.15"]
[Round "6.9"]
[White "Rudlof, Adam"]
[Black "Frantsev, Iegor"]
[Result "1-0"]
[ECO "B12"]
[WhiteElo "1409"]
[BlackElo "1424"]
[Annotator "NA RC COMBH"]
[PlyCount "101"]
[EventDate "2023.03.09"]
[EventType "swiss"]
[EventCountry "CZE"]
[SourceTitle "playchess.com"]
[Source "ChessBase"]
[SourceQuality "1"]
[TimeControl "40/5400+30:1800+30"]

1. e4 c6 {[%emt 0:00:03]} 2. d4 {[%emt 0:00:05]} d5 {[%emt 0:00:04]} 3. f3 {[%emt 0:00:07]} e6 {[%emt 0:00:55]} 4. Nc3 {[%emt 0:00:07]} Bd6 {[%emt 0:01:38]} 5. Be3 {[%emt 0:01:06]} Nd7 {[%emt 0:01:19]} 6. e5 {[%emt 0:00:06]} Bb8 {[%emt 0:03:24]} 7. Bd3 {[%emt 0:00:47]} c5 {[%emt 0:01:05]} 8. f4 {[%emt 0:00:49]} c4 {[%emt 0:04:37]} 9. Be2 {[%emt 0:00:06]} Ne7 {[%emt 0:03:32]} 10. Nf3 {[%emt 0:02:14]} Qb6 {[%emt 0:02:43]} 11. Rb1 {[%emt 0:07:47]} Nf5 {[%emt 0:03:08]} 12. Bf2 {[%emt 0:00:16]} Qc6 {[%emt 0:00:58]} 13. g4 {[%emt 0:01:59]} Ne7 {[%emt 0:01:47]} 14. h4 {[%emt 0:06:01]} b5 {[%emt 0:01:05]} 15. a3 {[%emt 0:01:38]} a5 {[%emt 0:01:32]} 16. Na2 {[%emt 0:08:33]} Bc7 {[%emt 0:04:59]} 17. c3 {[%emt 0:03:04]} f5 {[%emt 0:12:48]} 18. Rg1 {[%emt 0:08:19]} g6 {[%emt 0:01:51]} 19. Qc2 {[%emt 0:04:15]} Nf8 {[%emt 0:01:29]} 20. Kd2 {[%emt 0:01:38]} Ba6 {[%emt 0:02:33]} 21. h5 {[%emt 0:06:53]} fxg4 {[%emt 0:11:05]} 22. Rxg4 {[%emt 0:01:18]} gxh5 {[%emt 0:00:31]} 23. Rg5 {[%emt 0:04:10]} Nfg6 {[%emt 0:01:56]} 24. Be3 {[%emt 0:02:10]} h4 {[%emt 0:02:11]} 25. Rh1 {[%emt 0:05:30]} Nf5 {[%emt 0:01:01]} 26. Bf2 {[%emt 0:01:43]} O-O-O {[%emt 0:04:42]} 27. Nxh4 {[%emt 0:00:44]} Nfxh4 {[%emt 0:01:46]} 28. Bxh4 {[%emt 0:00:19]} Nxf4 {[%emt 0:02:32]} 29. Rg4 {[%emt 0:00:27]} Rdf8 {[%emt 0:00:26]} 30. Bf6 {[%emt 0:00:07]} Rxf6 {[%emt 0:04:10]} 31. exf6 {[%emt 0:00:38]} e5 {[%emt 0:00:06]} 32. f7 {[%emt 0:00:51]} Rf8 {[%emt 0:01:08]} 33. Rg8 {[%emt 0:00:25]} Qd6 {[%emt 0:00:23]} 34. Rxf8+ {[%emt 0:01:07]} Qxf8 {[%emt 0:00:08]} 35. Qf5+ {[%emt 0:00:05]} Kb7 {[%emt 0:00:26]} 36. dxe5 {[%emt 0:00:38]} Nxe2 {[%emt 0:01:17]} 37. Kxe2 {[%emt 0:00:15]} d4 {[%emt 0:00:14]} 38. Qe4+ {[%emt 0:01:50]} Kb6 {[%emt 0:00:29]} 39. Qxd4+ {[%emt 0:00:21]} Kb7 {[%emt 0:00:21]} 40. Qd5+ {[%emt 0:00:15]} Ka7 {[%emt 0:00:34]} 41. e6 {[%emt 0:31:13]} Bb7 {[%emt 0:31:01]} 42. Qd4+ {[%emt 0:00:08]} Bb6 {[%emt 0:00:09]} 43. Qd7 {[%emt 0:00:19]} Qc5 {[%emt 0:00:40]} 44. Kd1 {[%emt 0:07:56]} Ka6 {[%emt 0:02:10]} 45. Re1 {[%emt 0:02:38]} Qf5 {[%emt 0:03:15]} 46. Kc1 {[%emt 0:01:00]} Be4 {[%emt 0:04:12]} 47. f8=Q Qxf8 {[%emt 0:00:30]} 48. Rxe4 {[%emt 0:01:12]} Qh6+ {[%emt 0:00:48]} 49. Qd2 {[%emt 0:00:20]} Qh1+ {[%emt 0:00:55]} 50. Re1 {[%emt 0:00:07]} Qc6 {[%emt 0:01:26]} 51. e7 {[%emt 0:00:11]} 1-0